bitfinex-derivatives/quotes_ETHF0:USTF0_20250125
["timestamp","ask_amount","ask_price","bid_price","bid_amount"]
[1737822298794,0.52654071,3337.8,3337.5,0.47946]
[1737822298985,0.47944,3337.7,3337.5,0.47946]
[1737822300090,2.26446629,3337.9,3337.0,0.9276]
[1737822300295,0.52652697,3337.8,3337.1,0.47952]
[1737822300493,0.47943,3337.8,3337.5,0.47945]
[1737822300895,0.04709608,3337.7,3337.5,0.47945]
[1737822301094,0.52654608,3337.7,3337.5,0.47947]
[1737822301288,0.47945,3337.7,3337.4,0.47947]
[1737822301593,1.41053,3337.8,3337.5,0.47946]
[1737822301795,0.52653856,3337.7,3337.5,0.47946]
[1737822302000,2.26446629,3337.6,3337.0,0.9276]
[1737822302292,0.47949,3337.4,3337.0,0.9276]
[1737822302495,0.47949,3337.4,3337.2,0.47951]
[1737822302496,0.04709546,3337.3,3337.2,0.47951]
[1737822302699,0.98709546,3337.3,3337.2,0.47951]
[1737822302896,0.94,3337.3,3337.2,0.47951]
[1737822306990,0.94,3337.3,3337.0,0.9276]
[1737822307195,0.47954,3337.0,3336.9,3.2078]
[1737822307398,0.47952,3337.2,3336.9,4.03801916]
[1737822307602,0.47952,3337.1,3337.0,0.35067916]
[1737822307797,0.47952,3337.2,3337.0,0.83021916]
[1737822308001,0.47952,3337.2,3337.0,0.47954]
[1737822308402,0.94,3337.3,3336.9,3.2078]
[1737822308706,0.94,3337.3,3337.0,0.35060515]
[1737822309005,0.94,3337.3,3337.1,0.47952]
[1737822309203,1.4195,3337.3,3337.1,0.47952]
[1737822309902,0.94,3337.3,3337.1,0.47952]
[1737822310102,1.4195,3337.3,3337.2,0.47951]
[1737822310710,1.4195,3337.3,3337.1,0.47952]
[1737822312309,1.4195,3337.3,3336.9,3.2078]
[1737822312310,0.94,3337.3,3336.9,3.2078]
[1737822312509,1.4195,3337.3,3337.1,0.47951]
[1737822312710,0.94,3337.3,3336.9,3.2078]
[1737822312911,0.94,3337.3,3337.2,0.47951]
[1737822313107,0.9870637,3337.3,3337.2,0.47951]
[1737822313710,0.0470637,3337.3,3337.2,0.47951]
[1737822313911,0.04707113,3337.5,3337.3,0.47948]
[1737822314215,0.0470718,3337.4,3337.3,0.47948]
[1737822315008,0.5265618,3337.4,3336.9,3.2078]
[1737822315211,0.47949,3337.4,3337.2,0.47951]
[1737822315514,5.99883709,3337.3,3337.1,0.47951]
[1737822315715,5.95176629,3337.3,3337.1,0.47951]
[1737822315916,5.47226629,3337.3,3336.8,0.00449236]
[1737822316116,0.52657996,3337.2,3337.0,0.47953]
[1737822316309,0.964,3337.1,3337.0,0.47953]
[1737822317312,0.964,3337.1,3337.0,0.47954]
[1737822318413,3.2078,3337.3,3337.2,0.47951]
[1737822318609,4.15906629,3337.6,3336.8,0.00449236]
[1737822318810,0.4795,3337.3,3337.1,0.47952]
[1737822319305,0.47953,3337.1,3336.9,0.47954]
[1737822320017,1.33383,3337.1,3336.9,0.47954]
[1737822320508,0.47955,3336.9,3336.8,0.00449236]
[1737822320702,0.47955,3336.9,3336.1,0.9383]
[1737822320703,0.47964,3336.3,3336.1,0.9383]
[1737822321308,0.47965,3336.2,3336.1,0.9383]
[1737822321508,0.47964,3336.3,3336.1,0.9383]
[1737822321703,0.47965,3336.2,3336.1,0.9383]
[1737822321906,1.8415,3336.4,3336.1,0.9383]
[1737822322108,1.40523,3336.4,3336.2,0.47965]
[1737822322515,0.47964,3336.3,3336.1,1.41796]
[1737822323011,0.9256,3336.4,3336.1,0.9383]
[1737822323211,0.47965,3336.2,3336.1,0.9383]
[1737822323417,0.47967,3336.1,3335.9,0.93859236]
[1737822323622,0.47966,3336.2,3335.9,1.41827236]
[1737822324310,0.9256,3336.4,3335.9,0.93859236]
[1737822324512,0.47968,3336.1,3335.9,0.93859236]
[1737822324711,0.47968,3336.1,3335.9,1.41828236]
[1737822325714,0.8882,3336.3,3335.9,1.41828236]
[1737822325915,0.47966,3336.2,3335.9,1.41828236]
[1737822326214,0.47967,3336.1,3335.9,1.41828236]
[1737822326419,0.47967,3336.1,3335.9,0.93859236]
[1737822328215,0.47967,3336.1,3335.9,1.41828236]
[1737822329907,0.47967,3336.1,3335.9,0.93859236]
[1737822330419,0.47968,3336.0,3335.9,0.00449236]
[1737822330622,0.52673975,3336.0,3335.9,0.00449236]
[1737822331420,0.52673846,3336.0,3335.9,0.00449236]
[1737822332307,1.01105846,3336.0,3335.9,0.00449236]
[1737822332520,0.04705846,3336.0,3335.9,0.48419236]
[1737822333121,3.21229236,3336.5,3335.9,0.35439019]
[1737822333323,3.21229236,3336.5,3336.4,0.47962]
[1737822334220,0.00449236,3336.5,3336.4,0.47962]
[1737822336321,0.48410236,3336.5,3336.2,0.47964]
[1737822336718,0.48410236,3336.5,3336.3,0.886]
[1737822336914,0.47962,3336.4,3336.3,0.886]
[1737822337114,0.00449236,3336.5,3336.3,0.886]
[1737822337419,0.00449236,3336.5,3336.4,0.47962]
[1737822338229,0.00449236,3336.5,3336.0,1.7479]
[1737822338520,0.00449236,3336.5,3336.3,0.47963]
[1737822338723,0.00449236,3336.5,3336.4,0.47962]
[1737822339824,0.00449236,3336.5,3336.0,2.6135]
[1737822340025,0.00449236,3336.5,3336.4,0.47962]
[1737822340224,0.00449236,3336.5,3336.0,2.6135]
[1737822340428,0.00449236,3336.5,3336.1,0.35027618]
[1737822340619,0.00449236,3336.5,3336.4,0.47962]
[1737822341017,2.26895865,3336.5,3336.1,0.47966]
[1737822341231,4.05875865,3336.5,3336.1,0.47966]
[1737822341417,4.05875865,3336.5,3336.2,0.47965]
[1737822341725,0.47965,3336.3,3336.0,2.22757]
[1737822341927,0.47966,3336.2,3336.0,1.7479]
[1737822342114,0.9295,3336.4,3336.0,1.7479]
[1737822342628,0.47965,3336.2,3336.0,2.22758]
[1737822342822,0.9295,3336.4,3336.0,2.22758]
[1737822343028,0.9295,3336.4,3336.0,1.7479]
[1737822343223,0.9295,3336.4,3336.1,0.47966]
[1737822343428,0.47964,3336.3,3336.1,0.47966]
[1737822343633,0.9295,3336.4,3336.1,0.47966]
[1737822343931,0.9295,3336.4,3336.0,0.47967]
[1737822343932,0.47965,3336.3,3336.0,0.47967]
[1737822344126,0.47965,3336.3,3336.0,2.29227]
[1737822344331,0.9295,3336.4,3336.0,1.8126]
[1737822344636,0.47967,3336.2,3336.0,2.29228]
[1737822344929,0.9295,3336.4,3336.0,2.29228]
[1737822344930,0.47964,3336.3,3336.0,2.29228]
[1737822345921,0.47964,3336.3,3336.1,0.47967]
[1737822346127,0.47964,3336.3,3336.0,2.29227]
[1737822346431,1.34634,3336.3,3336.0,2.29227]
[1737822346737,0.47968,3336.0,3335.9,0.00449236]
[1737822347422,0.47968,3336.0,3335.9,0.35536458]
[1737822347624,0.47968,3336.0,3335.9,0.00449236]
[1737822348120,1.19933,3335.7,3334.8,0.47984]
[1737822348326,2.26446629,3335.2,3334.9,0.35092355]
[1737822348529,0.47982,3335.1,3334.8,0.47984]
[1737822348830,0.47983,3335.0,3334.7,0.47986]
[1737822349130,2.26446629,3335.2,3334.5,3.2078]
[1737822349335,2.74426629,3335.2,3334.9,0.47983]
[1737822349637,2.74426629,3335.2,3335.0,0.8655]
[1737822349828,2.74426629,3335.2,3335.1,0.9142]
[1737822350024,2.26446629,3335.2,3335.1,0.9142]
[1737822350731,2.74426629,3335.2,3335.1,0.9142]
[1737822350932,2.26446629,3335.2,3335.1,0.9142]
[1737822351124,2.74426629,3335.2,3335.1,0.9142]
[1737822351725,2.26446629,3335.2,3335.0,0.8655]
[1737822351929,0.47981,3335.1,3335.0,0.8655]
[1737822353333,2.26446629,3335.2,3335.0,0.8655]
[1737822353536,2.74426629,3335.2,3335.0,0.8655]
[1737822353835,0.964,3335.1,3335.0,0.8655]
[1737822354334,1.44381,3335.1,3335.0,0.8655]
[1737822354834,0.47985,3334.8,3334.7,0.8796]
[1737822355033,0.47985,3334.8,3334.7,1.23169387]
[1737822355628,0.47985,3334.8,3334.7,0.8796]
[1737822355830,2.26446629,3334.9,3334.7,0.8796]
[1737822356025,0.47986,3334.8,3334.5,3.68769]
[1737822356232,2.74430629,3334.9,3334.6,0.47988]
[1737822356940,5.47226629,3335.5,3334.5,3.2078]
[1737822357139,3.2078,3335.5,3334.9,3.2078]
[1737822357435,0.964,3335.6,3335.5,0.47975]
[1737822358635,0.964,3335.6,3335.0,2.687]
[1737822358841,0.964,3335.6,3335.3,0.47978]
[1737822358842,1.44374,3335.6,3335.3,0.47978]
[1737822359046,0.47974,3335.6,3335.3,0.47978]
[1737822359337,1.44374,3335.6,3335.3,0.47978]
[1737822360042,0.47974,3335.6,3335.3,0.47978]
[1737822360642,1.44373,3335.7,3335.4,0.47977]
[1737822361351,0.964,3335.7,3335.4,0.47977]
[1737822361536,0.964,3335.7,3335.5,1.37925]
[1737822361840,0.47971,3335.8,3335.5,1.37925]
[1737822362045,4.65151,3335.9,3335.6,0.47973]
[1737822362338,4.1718,3335.9,3335.8,0.47971]
[1737822362744,3.2078,3335.9,3335.8,0.47971]
[1737822363237,0.00449236,3336.5,3335.7,4.0725]
[1737822363238,2.26446629,3336.4,3335.7,4.0725]
[1737822363443,2.26446629,3336.4,3335.8,1.260773]
[1737822363643,2.26446629,3336.4,3336.3,0.47964]
[1737822364043,2.26446629,3336.4,3335.8,0.909]
[1737822364341,5.47226629,3336.4,3336.1,0.47966]
[1737822364539,3.2078,3336.4,3336.3,0.47964]
[1737822364739,0.00449236,3336.5,3336.1,3.2078]
[1737822364946,0.00449236,3336.5,3336.4,0.47962]
[1737822366245,0.00449236,3336.5,3336.4,0.83132053]
[1737822367138,0.00449236,3336.5,3336.4,0.47962]
[1737822368549,0.00449236,3336.5,3336.4,0.83124817]
[1737822369042,0.00449236,3336.5,3336.4,0.47962]
[1737822378561,0.00449236,3336.5,3336.2,0.9138]
[1737822378762,0.47969,3336.0,3335.8,0.4797]
[1737822379058,0.47971,3335.8,3335.7,1.34442]
[1737822379463,1.34661,3335.9,3335.7,1.34442]
[1737822379663,0.47971,3335.8,3335.7,1.34442]
[1737822379860,1.34661,3335.9,3335.8,0.47971]
[1737822380162,0.8669,3335.9,3335.7,1.34442]
[1737822380464,0.47971,3335.8,3335.7,1.34442]
[1737822380765,1.34661,3335.9,3335.7,1.34442]
[1737822380967,0.8669,3335.9,3335.8,0.47971]
[1737822381556,1.3466,3335.9,3335.8,0.47971]
[1737822381963,0.8669,3335.9,3335.8,0.47971]
[1737822382569,0.964,3336.1,3335.7,0.8647]
[1737822382870,0.964,3336.1,3336.0,0.47968]
[1737822383070,1.9026,3336.3,3336.2,0.47965]
[1737822383274,2.38224,3336.3,3336.2,0.47965]
[1737822384170,2.38224,3336.3,3336.1,0.47966]
[1737822384370,2.38224,3336.3,3336.2,0.47965]
[1737822384563,1.9026,3336.3,3336.2,0.47965]
[1737822384763,2.38224,3336.3,3336.1,0.47966]
[1737822384965,0.47966,3336.2,3336.0,0.47967]
[1737822385270,1.37826,3336.2,3336.0,0.47967]
[1737822385865,0.8986,3336.2,3336.1,0.47967]
[1737822387067,0.8986,3336.2,3336.0,0.47967]
[1737822387964,0.8986,3336.2,3335.7,0.8647]
[1737822388171,0.8986,3336.2,3336.1,0.47967]
[1737822389273,1.9026,3336.3,3336.2,0.47965]
[1737822389274,0.964,3336.3,3336.2,0.47965]
[1737822389676,0.00449236,3336.5,3336.4,0.47962]
[1737822390368,0.00449236,3336.5,3336.4,0.8319351]
[1737822390874,0.00449236,3336.5,3336.4,4.0397351]
[1737822392178,0.8726,3336.9,3336.4,3.5601151]
[1737822392372,0.8726,3336.9,3336.8,0.47957]
[1737822393869,0.8726,3336.9,3336.5,0.92639236]
[1737822394071,0.8726,3336.9,3336.7,0.47958]
[1737822395075,0.8726,3336.9,3336.8,0.47957]
[1737822395275,0.8726,3336.9,3336.7,0.47957]
[1737822395679,1.35215,3336.9,3336.7,0.47957]
[1737822395874,0.8726,3336.9,3336.8,0.47957]
[1737822396180,0.00449236,3337.2,3337.1,0.47952]
[1737822396481,0.00449236,3337.2,3337.1,0.83198178]
[1737822396672,0.00449236,3337.2,3337.1,0.47952]
[1737822396872,0.00449236,3337.2,3337.1,0.83198749]
[1737822397275,0.00449236,3337.2,3337.1,0.47952]
[1737822397474,0.00449236,3337.2,3337.1,0.8319079]
[1737822397974,0.00449236,3337.2,3336.8,3.2078]
[1737822398278,0.47954,3337.1,3336.9,0.35234086]
[1737822398480,0.47954,3337.1,3336.8,3.68736]
[1737822398678,0.47954,3337.1,3336.9,0.35233883]
[1737822398874,0.93739236,3337.2,3336.9,0.47955]
[1737822399082,0.47952,3337.1,3336.8,3.68736]
[1737822399280,0.47952,3337.1,3336.9,0.3522998]
[1737822399483,0.47952,3337.1,3336.8,3.2078]
[1737822399774,0.47955,3337.0,3336.9,0.35230012]
[1737822399981,0.93739236,3337.2,3336.8,3.2078]
[1737822400180,0.47954,3337.1,3336.8,3.68736]
[1737822400377,0.47954,3337.1,3336.9,0.35228056]
[1737822400582,0.47954,3337.1,3336.8,3.68736]
[1737822400782,0.47954,3337.0,3336.9,0.35226085]
[1737822401081,1.41404,3337.0,3336.9,0.35226085]
[1737822401285,6.40676629,3337.0,3336.5,0.00449236]
[1737822401482,2.74406629,3336.6,3336.5,0.00449236]
[1737822401678,5.95186629,3336.6,3336.5,0.00449236]
[1737822412483,6.91586629,3336.6,3336.5,0.00449236]
[1737822414289,5.95186629,3336.6,3336.5,0.00449236]
[1737822414478,6.91586629,3336.6,3336.5,0.00449236]
[1737822419485,5.95186629,3336.6,3336.5,0.00449236]
[1737822419687,3.2078,3336.6,3336.5,0.48410236]
[1737822419885,3.2078,3336.6,3336.5,1.35360236]
[1737822420787,3.2078,3336.6,3336.5,1.70598866]
[1737822421186,3.2078,3336.6,3336.5,0.83648866]
[1737822421388,3.2078,3336.6,3336.5,0.83647484]
[1737822422896,3.2078,3336.6,3336.5,0.48410236]
[1737822423988,3.20185865,3337.2,3336.5,0.48410236]
[1737822423989,0.00449236,3337.2,3337.1,0.47952]
[1737822425994,3.68725,3337.6,3337.4,0.47948]
[1737822426192,2.26446629,3338.4,3337.5,1.7664]
[1737822426390,3.2078,3338.5,3338.3,0.47935]
[1737822426594,3.2078,3338.5,3338.4,0.8905]
[1737822427395,3.2078,3338.5,3338.4,1.72217039]
[1737822427694,14.0912135,3338.6,3338.4,0.8905]
[1737822427900,0.00449236,3338.8,3338.5,0.47932]
[1737822428296,2.26446629,3338.7,3338.3,0.00449236]
[1737822428490,0.47934,3338.4,3338.3,0.00449236]
[1737822429002,2.74380629,3338.4,3338.3,0.00449236]
[1737822429793,4.1718,3338.5,3338.3,0.00449236]
[1737822429994,3.2078,3338.5,3338.4,0.83215613]
[1737822431201,3.2078,3338.5,3338.4,0.93265969]
[1737822431394,3.2078,3338.5,3338.4,0.47934]
[1737822433099,0.00449236,3338.8,3338.7,0.47929]
[1737822434901,0.00449236,3338.8,3338.3,0.00449236]
[1737822435103,0.48377236,3338.8,3338.5,0.47932]
[1737822435299,0.00449236,3338.8,3338.5,0.47932]
[1737822435597,0.00449236,3338.8,3338.3,0.00449236]
[1737822435905,0.00449236,3338.8,3338.5,0.47931]
[1737822436105,0.00449236,3338.8,3338.6,1.37881]
[1737822436701,0.00449236,3338.8,3338.7,0.8647]
[1737822437100,0.00449236,3338.8,3338.3,0.00449236]
[1737822437407,2.74376629,3338.7,3338.3,0.48383236]
[1737822438208,2.74376629,3338.7,3338.4,0.47933]
[1737822438209,0.4793,3338.7,3338.4,0.47933]
[1737822438408,0.00449236,3338.8,3338.3,0.00449236]
[1737822438712,0.00449236,3338.8,3338.7,0.47929]
[1737822443513,3.2078,3339.3,3339.2,0.47922]
[1737822444009,0.47913,3339.9,3339.7,0.47914]
[1737822444207,2.6908,3340.0,3339.3,1.8304]
[1737822444512,0.47913,3339.9,3339.7,0.47914]
[1737822445008,14.0912135,3340.1,3339.8,5.47226629]
[1737822445310,13.29773692,3340.1,3340.0,0.47911]
[1737822446308,0.00449236,3340.4,3340.0,0.47911]
[1737822446506,0.00449236,3340.4,3339.9,2.96721]
[1737822446507,0.00449236,3340.4,3340.3,0.47906]
[1737822449003,0.00449236,3340.4,3340.3,5.47906]
[1737822449208,2.36e-06,3340.4,3340.3,5.82847557]
[1737822449407,3.2078,3341.1,3341.0,0.47896]
[1737822449709,3.68669,3341.5,3341.2,0.47892]
[1737822449914,3.2078,3341.5,3341.4,0.47891]
[1737822450109,3.68661,3342.1,3341.7,0.47885]
[1737822450416,0.47882,3342.0,3341.6,0.47887]
[1737822450605,0.8788,3342.0,3341.5,0.8494]
[1737822450806,0.8788,3342.0,3341.7,0.47886]
[1737822452115,0.8788,3342.0,3341.5,0.8494]
[1737822452312,1.35762,3342.0,3341.6,0.47888]
[1737822452513,0.8788,3342.0,3341.4,3.2078]
[1737822452711,0.47885,3341.9,3341.4,3.6867]
[1737822453115,0.47885,3341.9,3341.4,3.2078]
[1737822453315,0.47885,3341.9,3341.5,0.47889]
[1737822453621,0.47893,3341.3,3340.9,3.68677]
[1737822453815,3.68673,3341.3,3341.0,0.47896]
[1737822454116,0.47894,3341.2,3340.9,3.68677]
[1737822454314,1.38934,3341.2,3340.9,3.2078]
[1737822454515,0.47896,3341.1,3340.9,3.2078]
[1737822455115,0.9104,3341.2,3340.9,3.2078]
[1737822455320,0.9104,3341.2,3340.9,3.68677]
[1737822455618,0.9104,3341.2,3340.9,3.2078]
[1737822455816,0.47895,3341.1,3340.9,3.2078]
[1737822456012,1.38934,3341.2,3340.9,3.68678]
[1737822456217,1.38934,3341.2,3340.9,0.47898]
[1737822456817,3.73535267,3359.6,3341.1,3.2078]
[1737822456818,3.2078,3341.7,3341.1,3.2078]
[1737822457121,3.2078,3341.7,3341.6,0.47888]
[1737822458417,0.47883,3342.0,3341.6,0.47888]
[1737822459122,0.47884,3341.9,3341.5,0.47888]
[1737822459521,0.968,3342.1,3341.2,3.12786629]
[1737822459919,0.47882,3342.0,3341.7,0.47886]
[1737822460120,1.44682,3342.1,3341.7,0.47886]
[1737822460524,0.968,3342.1,3341.8,0.47884]
[1737822460822,0.968,3342.1,3341.2,4.32520629]
[1737822460823,3.21229236,3342.2,3341.2,3.12786629]
[1737822461022,0.968,3342.1,3341.6,2.26895865]
[1737822461227,0.968,3342.1,3341.9,0.47882]
[1737822461719,0.968,3342.1,3342.0,0.47882]
[1737822462021,3.21229236,3342.2,3342.1,0.47881]
[1737822463921,0.00449236,3342.2,3342.1,0.47881]
[1737822466921,0.00449236,3342.2,3342.1,0.82741902]
[1737822467122,0.00449236,3342.2,3342.1,0.82741273]
[1737822467322,0.00449236,3342.2,3342.1,0.82770096]
[1737822468229,0.48328236,3342.2,3342.0,3.68661]
[1737822468425,0.00449236,3342.2,3342.0,3.2078]
[1737822468628,0.00449236,3342.2,3342.1,0.47881]
[1737822469327,0.00449236,3342.2,3342.1,0.82800458]
[1737822470831,0.00449236,3342.2,3342.1,0.47881]
[1737822471125,0.00449236,3342.2,3342.1,0.82808064]
[1737822471331,0.00449236,3342.2,3342.1,0.82807722]
[1737822472931,0.00449236,3342.2,3342.1,0.82840408]
[1737822474532,0.00449236,3342.2,3342.1,0.92809691]
[1737822474732,0.00449236,3342.2,3342.1,1.27833261]
[1737822476834,0.00449236,3342.2,3342.1,1.27855702]
[1737822477030,0.00449236,3342.2,3342.1,0.79974702]
[1737822477233,1.40648236,3342.2,3342.1,0.44928691]
[1737822477438,0.47883,3342.0,3341.9,0.47883]
[1737822477633,0.47883,3342.0,3341.9,0.82953364]
[1737822477839,0.47883,3342.0,3341.9,0.47883]
[1737822478537,0.47883,3342.0,3341.9,0.82969309]
[1737822478737,0.47883,3342.0,3341.9,0.82969687]
[1737822479032,0.47881,3342.1,3342.0,0.47881]
[1737822479236,0.47881,3342.1,3341.6,5.47675865]
[1737822479426,0.47881,3342.1,3341.9,0.47883]
[1737822479836,1.40649236,3342.2,3342.0,0.47881]
[1737822480029,0.92769236,3342.2,3341.6,5.47675865]
[1737822480236,0.00449236,3342.2,3342.1,0.47881]
[1737822480539,0.00449236,3342.2,3342.1,0.82956261]
[1737822481037,0.00449236,3342.2,3342.1,0.35075261]
[1737822481633,0.00449236,3342.2,3342.1,0.82956261]
[1737822483939,0.00449236,3342.2,3342.1,0.8295611]
[1737822484444,0.00449236,3342.2,3342.1,1.27948554]
[1737822485042,0.00449236,3342.2,3342.1,42.07948554]
[1737822485735,0.00449236,3342.2,3342.1,42.07974892]
[1737822486136,0.00449236,3342.2,3342.1,1.2797525]
[1737822486337,0.00449236,3342.2,3342.1,1.72346603]
[1737822487435,0.00449236,3342.2,3342.1,0.92873444]
[1737822487645,0.00449236,3342.2,3342.1,0.47881]
[1737822487838,0.00449236,3342.2,3342.1,0.92285187]
[1737822488040,0.00449236,3342.2,3342.1,1.27414118]
[1737822488235,0.00449236,3342.2,3342.1,1.72478019]
[1737822489547,0.48328236,3342.2,3342.1,1.72478019]
[1737822489739,0.48328236,3342.2,3342.1,1.72536613]
[1737822490044,0.48328236,3342.2,3342.1,1.24655613]
[1737822490241,0.48328236,3342.2,3342.1,1.72536613]
[1737822491247,0.48328236,3342.2,3342.1,1.24655613]
[1737822491449,0.48328236,3342.2,3342.1,1.72536613]
[1737822491640,0.00449236,3342.2,3342.1,1.72595392]
[1737822492843,0.48328236,3342.2,3342.1,1.24714392]
[1737822494245,0.48328236,3342.2,3342.1,0.80244688]
[1737822494544,0.48328236,3342.2,3342.1,1.24724312]
[1737822494742,0.48328236,3342.2,3342.1,0.80244688]
[1737822494944,0.48328236,3342.2,3342.1,1.24724227]
[1737822495140,0.48328236,3342.2,3342.1,0.80244688]
[1737822496553,0.48328236,3342.2,3342.1,0.45063901]
[1737822496842,0.00449236,3342.2,3342.1,0.47881]
[1737822497647,0.00449236,3342.2,3342.1,0.82737078]
[1737822498250,0.00449236,3342.2,3342.1,1.27985729]
[1737822499257,0.00449236,3342.2,3342.1,0.80102482]
[1737822499556,0.48328236,3342.2,3342.1,0.80102482]
[1737822501145,0.48328236,3342.2,3342.1,0.34853831]
[1737822501341,0.47886,3341.8,3341.6,2.74782865]
[1737822501547,0.8647,3341.7,3341.6,2.74782865]
[1737822501841,3.2078,3342.0,3341.9,0.47884]
[1737822502046,3.2078,3342.0,3341.9,0.82754834]
[1737822502347,3.2078,3342.0,3341.9,0.34869385]
[1737822502544,0.47882,3342.0,3341.9,0.34869385]
[1737822502747,0.47882,3342.0,3341.9,0.82753385]
[1737822503054,0.47882,3342.0,3341.9,0.34869385]
[1737822503352,0.8647,3342.1,3341.9,0.82748859]
[1737822503548,1.34352,3342.1,3342.0,0.34864859]
[1737822505150,0.00449236,3342.2,3342.1,0.47881]
[1737822505348,0.00449236,3342.2,3342.1,1.27985782]
[1737822505559,0.00449236,3342.2,3342.1,1.73355649]
[1737822506951,0.00449236,3342.2,3342.1,2.472902]
[1737822507260,0.00449236,3342.2,3342.1,2.48128628]
[1737822508357,0.00449236,3342.2,3342.1,2.48128129]
[1737822509257,0.00449236,3342.2,3342.1,2.48130067]
[1737822509554,3.2078,3342.8,3342.1,12.47475696]
[1737822509759,12.933014,3342.9,3342.7,2.26446629]
[1737822510059,12.933014,3342.9,3342.8,2.02198679]
[1737822510246,12.933014,3342.9,3342.8,2.14596207]
[1737822510447,12.933014,3342.9,3342.8,2.87795195]
[1737822510655,12.933014,3342.9,3342.8,2.59846315]
[1737822511056,12.933014,3342.9,3342.8,1.74186315]
[1737822511257,12.933014,3342.9,3342.8,0.8010672]
[1737822511453,16.100704,3342.9,3342.8,0.8010672]
[1737822511659,2.689,3342.9,3342.8,1.2797772]
[1737822512054,1.7945,3342.9,3342.8,1.2797772]
[1737822512253,1.7945,3342.9,3342.8,1.73703698]
[1737822512449,1.7945,3342.9,3342.8,2.01789934]
[1737822512655,0.47867,3343.1,3342.8,1.53918934]
[1737822512953,0.00294865,3343.2,3343.0,0.47868]
[1737822513154,0.00294865,3343.2,3343.1,0.82722612]
[1737822513959,0.00294865,3343.2,3343.1,0.34856612]
[1737822514161,0.48159865,3343.2,3342.9,1.32559]
[1737822514358,0.48159865,3343.2,3343.0,0.3478351]
[1737822514556,0.48159865,3343.2,3342.9,1.32559]
[1737822514757,0.48159865,3343.2,3343.0,0.34783653]
[1737822515062,0.00294865,3343.2,3343.0,0.47867]
[1737822515452,0.47866,3343.1,3342.9,1.32559]
[1737822515656,0.47866,3343.1,3343.0,0.34777856]
[1737822516056,0.48160865,3343.2,3343.0,0.34777856]
[1737822516257,0.48160865,3343.2,3342.9,1.32559]
[1737822516451,0.48160865,3343.2,3343.0,0.34772063]
[1737822516657,0.48160865,3343.2,3342.9,1.32559]
[1737822516962,0.47866,3343.1,3343.0,0.34770268]
[1737822517353,0.00294865,3343.2,3342.8,0.8748]
[1737822517566,0.47869,3343.0,3342.9,0.34761121]
[1737822519364,0.47874,3342.6,3342.4,4.04306629]
[1737822519556,0.47874,3342.6,3342.5,0.34759389]
[1737822520259,0.47874,3342.6,3342.4,1.34746]
[1737822520462,0.47873,3342.6,3342.5,0.34762613]
[1737822520959,0.47873,3342.6,3342.5,0.80743237]
[1737822521464,0.47873,3342.6,3342.5,0.34762613]
[1737822522863,0.47871,3342.8,3342.6,0.47873]
[1737822523165,0.47871,3342.8,3342.7,2.26446629]
[1737822523464,0.47871,3342.8,3342.7,0.34764709]
[1737822523661,5.0237,3342.9,3342.5,0.47874]
[1737822523859,0.47873,3342.7,3342.5,0.47874]
[1737822524167,3.2078,3342.9,3342.4,3.13316629]
[1737822524358,0.47873,3342.7,3342.5,0.82633785]
[1737822524558,0.9332,3342.8,3342.4,3.13316629]
[1737822524863,0.47877,3342.4,3342.2,0.47879]
[1737822525069,0.9332,3342.8,3342.1,2.26446629]
[1737822525070,0.47875,3342.5,3342.4,0.47876]
[1737822525368,0.9332,3342.8,3342.5,0.47874]
[1737822525569,0.47873,3342.6,3342.5,0.47874]
[1737822525865,0.47873,3342.6,3342.5,0.8264093]
[1737822526367,0.47873,3342.6,3342.5,0.3476693]
[1737822526767,0.9332,3342.8,3342.5,0.3477315]
[1737822526968,0.9332,3342.8,3342.6,0.34772897]
[1737822527164,0.47875,3342.5,3342.4,2.74322629]
[1737822527363,0.47875,3342.5,3342.4,0.82654997]
[1737822527564,0.47875,3342.5,3342.4,1.27960869]
[1737822528367,0.47874,3342.6,3342.5,0.47874]
[1737822528568,0.47873,3342.7,3342.6,0.47873]
[1737822528771,0.47873,3342.7,3342.6,0.34778997]
[1737822529471,1.34687,3343.1,3342.9,0.47868]
[1737822529655,0.962,3343.0,3342.9,0.47868]
[1737822529862,0.962,3343.0,3342.9,0.82650161]
[1737822530062,0.962,3343.0,3342.9,0.47868]
[1737822530258,0.962,3343.0,3342.9,0.82658804]
[1737822530671,0.962,3343.0,3342.9,0.82656614]
[1737822531069,0.8682,3343.1,3343.0,0.47868]
[1737822531271,2.30886,3343.1,3343.0,0.34788614]
[1737822531767,0.47869,3343.0,3342.8,0.4787]
[1737822531974,0.47869,3343.0,3342.9,0.34799715]
[1737822532270,0.47872,3342.8,3342.6,0.47873]
[1737822532469,0.47872,3342.8,3342.7,0.34801449]
[1737822532975,1.40202,3342.8,3342.7,0.34801449]
[1737822533271,0.9233,3342.8,3342.7,1.28040024]
[1737822534469,3.2078,3342.9,3342.7,0.80191288]
[1737822534670,3.2078,3342.9,3342.8,0.82695713]
[1737822534865,3.68649,3342.9,3342.8,0.34824713]
[1737822535065,3.68649,3342.9,3342.8,0.80191288]
[1737822535673,3.68649,3342.9,3342.8,0.34824713]
[1737822536566,3.68649,3342.9,3342.8,0.3483752]
[1737822538779,3.68649,3342.9,3342.8,0.80491283]
[1737822539171,3.68649,3342.9,3342.8,0.3483752]
[1737822539685,3.2078,3342.9,3342.8,0.3483752]
[1737822539877,3.68649,3342.9,3342.8,0.8270852]
[1737822540573,3.68649,3342.9,3342.8,0.3483752]
[1737822540781,0.47869,3342.9,3342.8,0.34840797]
[1737822542781,0.47869,3342.9,3342.7,0.47872]
[1737822542980,0.962,3343.0,3342.4,2.26446629]
[1737822543181,0.47873,3342.7,3342.5,0.8272466]
[1737822543380,0.47873,3342.7,3342.6,0.3485066]
[1737822543583,0.47873,3342.7,3342.6,0.80520902]
[1737822543884,0.962,3343.0,3342.6,0.80520902]
[1737822544081,0.4787,3342.9,3342.7,1.6764166]
[1737822544379,0.962,3343.0,3342.8,0.82730111]
[1737822544586,0.47869,3342.9,3342.8,0.4787]
[1737822544885,0.4787,3342.9,3342.8,0.34861861]